fUSD/lending_fUSD_20250124
["ID","MTS","AMOUNT","RATE_DAILY","PERIOD"]
[350243769,1737733847895,-500.0,0.00018695,2]
[350243770,1737733847906,-500.0,0.00018695,2]
[350243771,1737733847916,-500.0,0.00018695,2]
[350243772,1737733847927,-504.79271626,0.00018695,2]
[350243773,1737733847937,-500.0,0.00018695,2]
[350243774,1737733847947,-500.0,0.00018695,2]
[350243775,1737733847957,-500.0,0.00018695,2]
[350243776,1737733847967,-500.0,0.00018695,2]
[350243777,1737733847977,-500.0,0.00018695,2]
[350243778,1737733847987,-502.96572292,0.00018695,2]
[350243779,1737733847997,-500.0,0.00018695,2]
[350243780,1737733848006,-500.0,0.00018695,2]
[350243781,1737733848016,-500.0,0.00018695,2]
[350243782,1737733848027,-500.0,0.00018695,2]
[350243783,1737733848042,-500.0,0.00018695,2]
[350243784,1737733848053,-500.0,0.00018695,2]
[350243785,1737733848063,-557.84546398,0.00018695,2]
[350243786,1737733848073,-500.0,0.00018695,2]
[350243787,1737733848083,-500.0,0.00018695,2]
[350243788,1737733848095,-500.0,0.00018695,2]
[350243789,1737733848105,-500.0,0.00018695,2]
[350243790,1737733848115,-500.0,0.00018695,2]
[350243791,1737733848126,-339.83192287,0.00018695,2]
[350243792,1737733848138,-500.0,0.00018695,2]
[350243793,1737733848148,-500.0,0.00018695,2]
[350243794,1737733848158,-500.0,0.00018695,2]
[350243795,1737733848169,-500.0,0.00018695,2]
[350243796,1737733848180,-500.0,0.00018695,2]
[350243797,1737733848190,-503.32887218,0.00018695,2]
[350243798,1737733848200,-500.0,0.00018695,2]
[350243799,1737733848211,-500.0,0.00018695,2]
[350243800,1737733848221,-500.0,0.00018695,2]
[350243801,1737733848231,-500.0,0.00018695,2]
[350243802,1737733848242,-576.93543765,0.00018695,2]
[350243803,1737733848252,-500.0,0.00018695,2]
[350243804,1737733848263,-500.0,0.00018695,2]
[350243805,1737733848273,-500.0,0.00018695,2]
[350243806,1737733848283,-500.0,0.00018695,2]
[350243807,1737733848294,-500.0,0.00018695,2]
[350243808,1737733848303,-500.0,0.00018695,2]
[350243809,1737733848314,-500.0,0.00018695,2]
[350243810,1737733848323,-500.0,0.00018695,2]
[350243811,1737733848337,-500.0,0.00018695,2]
[350243812,1737733848350,-500.0,0.00018695,2]
[350243813,1737733848360,-500.0,0.00018695,2]
[350243814,1737733848371,-500.0,0.00018695,2]
[350243815,1737733848382,-500.0,0.00018695,2]
[350243816,1737733848392,-500.0,0.00018695,2]
[350243817,1737733848404,-500.0,0.00018695,2]
[350243818,1737733848426,-500.0,0.00018695,2]
[350243819,1737733848437,-662.22,0.00018695,2]
[350243820,1737733848448,-500.0,0.00018695,2]
[350243821,1737733848457,-500.0,0.00018695,2]
[350243822,1737733848467,-528.38557907,0.00018695,2]
[350243823,1737733848477,-500.0,0.00018695,2]
[350243824,1737733848487,-500.0,0.00018695,2]
[350243825,1737733848497,-500.0,0.00018695,2]
[350243826,1737733848507,-500.0,0.00018695,2]
[350243827,1737733848517,-1212.97,0.00018695,2]
[350243828,1737733848532,-1212.97,0.00018695,2]
[350243829,1737733848542,-1212.97,0.00018695,2]
[350243830,1737733848552,-1212.97,0.00018695,2]
[350243831,1737733848562,-1212.97,0.00018695,2]
[350243832,1737733848575,-1212.97,0.00018695,2]
[350243833,1737733848586,-1212.97,0.00018695,2]
[350243834,1737733848597,-1212.97,0.00018695,2]
[350243835,1737733848608,-1212.97,0.00018695,2]
[350243836,1737733848618,-1212.97,0.00018695,2]
[350243837,1737733848627,-1212.97,0.00018695,2]
[350243838,1737733848638,-1212.97,0.00018695,2]
[350243839,1737733848648,-1212.97,0.00018695,2]
[350243840,1737733848658,-1212.97,0.00018695,2]
[350243841,1737733848668,-1212.97,0.00018695,2]
[350243842,1737733848677,-1212.97,0.00018695,2]
[350243843,1737733848688,-1212.97,0.00018695,2]
[350243844,1737733848698,-1212.97,0.00018695,2]
[350243845,1737733848708,-1212.97,0.00018695,2]
[350243846,1737733848718,-1212.97,0.00018695,2]
[350243847,1737733848728,-1212.97,0.00018695,2]
[350243848,1737733848739,-1212.97,0.00018695,2]
[350243849,1737733848749,-1212.97,0.00018695,2]
[350243850,1737733848759,-1213.13807438,0.00018695,2]
[350243851,1737733848769,-740.42,0.00018695,2]
[350243852,1737733848779,-500.0,0.00018695,2]
[350243853,1737733848790,-500.0,0.00018695,2]
[350243854,1737733848800,-500.0,0.00018695,2]
[350243855,1737733848810,-500.0,0.00018695,2]
[350243856,1737733848820,-500.0,0.00018695,2]
[350243857,1737733848830,-500.0,0.00018695,2]
[350243858,1737733848840,-500.0,0.00018695,2]
[350243859,1737733848850,-554.88,0.00018695,2]
[350243860,1737733848860,-500.0,0.00018695,2]
[350243861,1737733848869,-500.0,0.00018695,2]
[350243862,1737733848882,-500.0,0.00018695,2]
[350243863,1737733848892,-521.42763089,0.00018695,2]
[350243864,1737733848903,-547.97,0.00018695,2]
[350243865,1737733848913,-500.0,0.00018695,2]
[350243866,1737733848924,-648.59741008,0.00018695,2]
[350243867,1737733848933,-500.0,0.00018695,2]
[350243868,1737733848943,-500.0,0.00018695,2]
[350243869,1737733848954,-500.0,0.00018695,2]
[350243870,1737733848964,-500.0,0.00018695,2]
[350243871,1737733848974,-500.0,0.00018695,2]
[350243872,1737733848984,-500.0,0.00018695,2]
[350243873,1737733848994,-623.39861847,0.00018695,2]
[350243874,1737733849004,-500.0,0.00018695,2]
[350243875,1737733849013,-301.266657,0.00018695,2]
[350243876,1737733849023,-500.0,0.00018695,2]
[350243877,1737733849033,-500.0,0.00018695,2]
[350243878,1737733849043,-500.0,0.00018695,2]
[350243879,1737733849053,-151.0,0.00018695,2]
[350243880,1737733849063,-500.0,0.00018695,2]
[350243881,1737733849074,-500.0,0.00018695,2]
[350243882,1737733849084,-500.0,0.00018695,2]
[350243883,1737733849094,-500.0,0.00018695,2]
[350243884,1737733849104,-500.0,0.00018695,2]
[350243885,1737733849114,-500.0,0.00018695,2]
[350243886,1737733849124,-500.0,0.00018695,2]
[350243887,1737733849136,-500.0,0.00018695,2]
[350243888,1737733849146,-500.0,0.00018695,2]
[350243889,1737733849156,-500.0,0.00018695,2]
[350243890,1737733849165,-500.0,0.00018695,2]
[350243891,1737733849175,-574.89,0.00018695,2]
[350243892,1737733849186,-500.0,0.00018695,2]
[350243893,1737733849196,-672.75,0.00018695,2]
[350243894,1737733849207,-500.0,0.00018695,2]
[350243895,1737733849223,-500.0,0.00018695,2]
[350243896,1737733849232,-486.55938907,0.00018695,2]
[350243897,1737733849241,-619.79,0.00018695,2]
[350243898,1737733849251,-500.0,0.00018695,2]
[350243899,1737733849261,-500.0,0.00018695,2]
[350243900,1737733849271,-500.0,0.00018695,2]
[350243901,1737733849282,-500.0,0.00018695,2]
[350243902,1737733849292,-500.0,0.00018695,2]
[350243903,1737733849302,-500.0,0.00018695,2]
[350243904,1737733849312,-500.0,0.00018695,2]
[350243905,1737733849322,-500.0,0.00018695,2]
[350243906,1737733849331,-500.0,0.00018695,2]
[350243907,1737733849341,-500.0,0.00018695,2]
[350243908,1737733849351,-500.0,0.00018695,2]
[350243909,1737733849360,-151.0,0.00018695,2]
[350243910,1737733849370,-500.0,0.00018695,2]
[350243911,1737733849381,-151.0,0.00018695,2]
[350243912,1737733849390,-500.0,0.00018695,2]
[350243913,1737733849400,-500.0,0.00018695,2]
[350243914,1737733849410,-500.0,0.00018695,2]
[350243915,1737733849421,-501.42571693,0.00018695,2]
[350243916,1737733849431,-500.0,0.00018695,2]
[350243917,1737733849441,-820.55,0.00018695,2]
[350243918,1737733849450,-213.35503,0.00018695,2]
[350243919,1737733849460,-213.35503,0.00018695,2]
[350243920,1737733849470,-536.69,0.00018695,2]
[350243921,1737733849480,-593.88,0.00018695,2]
[350243922,1737733849490,-151.0,0.00018695,2]
[350243923,1737733849499,-500.0,0.00018695,2]
[350243924,1737733849509,-151.0,0.00018695,2]
[350243925,1737733849519,-151.0,0.00018695,2]
[350243926,1737733849533,-500.0,0.00018695,2]
[350243927,1737733849545,-171.662017,0.00018695,2]
[350243928,1737733849559,-766.65,0.00018695,2]
[350243929,1737733849575,-151.0,0.00018695,2]
[350243930,1737733849586,-432.27698808,0.00018695,2]
[350243931,1737733849596,-304.38551846,0.00018695,2]
[350243932,1737733849606,-500.0,0.00018695,2]
[350243933,1737733849617,-151.689178,0.00018695,2]
[350243934,1737733849626,-151.0,0.00018695,2]
[350243935,1737733849638,-500.0,0.00018695,2]
[350243936,1737733849648,-500.0,0.00018695,2]
[350243937,1737733849658,-711.47,0.00018695,2]
[350243938,1737733849669,-588.98795338,0.00018695,2]
[350243939,1737733849679,-500.0,0.00018695,2]
[350243940,1737733849689,-500.0,0.00018695,2]
[350243941,1737733849699,-500.0,0.00018695,2]
[350243942,1737733849710,-500.0,0.00018695,2]
[350243943,1737733849720,-500.0,0.00018695,2]
[350243944,1737733849730,-500.0,0.00018695,2]
[350243945,1737733849740,-500.0,0.00018695,2]
[350243946,1737733849750,-520.67731626,0.00018695,2]
[350243947,1737733849760,-500.0,0.00018695,2]
[350243948,1737733849770,-500.0,0.00018695,2]
[350243949,1737733849781,-500.0,0.00018695,2]
[350243950,1737733849792,-500.0,0.00018695,2]
[350243951,1737733849802,-500.0,0.00018695,2]
[350243952,1737733849812,-151.0,0.00018695,2]
[350243953,1737733849822,-151.0,0.00018695,2]
[350243954,1737733849832,-500.0,0.00018695,2]
[350243955,1737733849843,-151.0,0.00018695,2]
[350243956,1737733849853,-151.0,0.00018695,2]
[350243957,1737733849863,-1112.390942,0.00018695,2]
[350243958,1737733850003,-465.00990546,0.00018695,2]
[350243959,1737733850015,-227.501719,0.00018695,2]
[350243960,1737733850025,-500.0,0.00018695,2]
[350243961,1737733850035,-1112.390942,0.00018695,2]
[350243962,1737733850045,-500.0,0.00018695,2]
[350243963,1737733850055,-500.0,0.00018695,2]
[350243964,1737733850064,-269.123355,0.00018695,2]
[350243965,1737733850074,-500.0,0.00018695,2]
[350243966,1737733850083,-269.123355,0.00018695,2]
[350243967,1737733850094,-151.0,0.00018695,2]
[350243968,1737733850103,-151.0,0.00018695,2]
[350243969,1737733850113,-151.0,0.00018695,2]
[350243970,1737733850124,-500.0,0.00018695,2]
[350243971,1737733850135,-151.0,0.00018695,2]
[350243972,1737733850145,-151.0,0.00018695,2]
[350243973,1737733850155,-500.0,0.00018695,2]
[350243974,1737733850165,-151.0,0.00018695,2]
[350243975,1737733850175,-500.0,0.00018695,2]
[350243976,1737733850185,-500.0,0.00018695,2]
[350243977,1737733850194,-151.0,0.00018695,2]
[350243978,1737733850204,-500.0,0.00018695,2]
[350243979,1737733850214,-151.0,0.00018695,2]
[350243980,1737733850223,-517.25692796,0.00018695,2]
[350243981,1737733850234,-500.0,0.00018695,2]
[350243982,1737733850243,-500.0,0.00018695,2]
[350243983,1737733850253,-500.0,0.00018695,2]
[350243984,1737733850263,-500.0,0.00018695,2]
[350243985,1737733850273,-151.0,0.00018695,2]
[350243986,1737733850283,-500.0,0.00018695,2]
[350243987,1737733850293,-500.0,0.00018695,2]
[350243988,1737733850303,-500.0,0.00018695,2]
[350243989,1737733850313,-500.0,0.00018695,2]
[350243990,1737733850322,-500.0,0.00018695,2]
[350243991,1737733850332,-151.0,0.00018695,2]
[350243992,1737733850343,-151.0,0.00018695,2]
[350243993,1737733850354,-151.0,0.00018695,2]
[350243994,1737733850364,-601.0,0.00018695,2]
[350243995,1737733850374,-500.0,0.00018695,2]
[350243996,1737733850385,-151.0,0.00018695,2]
[350243997,1737733850395,-151.0,0.00018695,2]
[350243998,1737733850405,-500.0,0.00018695,2]
[350243999,1737733850415,-500.0,0.00018695,2]
[350244000,1737733850424,-151.0,0.00018695,2]
[350244001,1737733850434,-500.0,0.00018695,2]
[350244002,1737733850445,-257.555298,0.00018695,2]
[350244003,1737733850455,-500.0,0.00018695,2]
[350244004,1737733850465,-4031.974426,0.00018695,2]
[350244005,1737733850475,-351.08261844,0.00018695,2]
[350244006,1737733850485,-4031.974426,0.00018695,2]
[350244007,1737733850495,-500.0,0.00018695,2]
[350244008,1737733850505,-500.0,0.00018695,2]
[350244009,1737733850515,-151.0,0.00018695,2]
[350244010,1737733850525,-151.0,0.00018695,2]
[350244011,1737733850536,-500.0,0.00018695,2]
[350244012,1737733850547,-151.0,0.00018695,2]
[350244013,1737733850558,-151.0,0.00018695,2]
[350244014,1737733850568,-216.021493,0.00018695,2]
[350244015,1737733850578,-216.021493,0.00018695,2]
[350244016,1737733850590,-500.0,0.00018695,2]
[350244017,1737733850600,-151.0,0.00018695,2]
[350244018,1737733850610,-151.0,0.00018695,2]
[350244019,1737733850622,-151.0,0.00018695,2]
[350244020,1737733850634,-151.0,0.00018695,2]
[350244021,1737733850644,-151.0,0.00018695,2]
[350244022,1737733850655,-151.0,0.00018695,2]
[350244023,1737733850665,-151.0,0.00018695,2]
[350244024,1737733850676,-151.0,0.00018695,2]
[350244025,1737733850685,-500.0,0.00018695,2]
[350244026,1737733850695,-151.0,0.00018695,2]
[350244027,1737733850705,-271.67409,0.00018695,2]
[350244028,1737733850715,-775.59,0.00018695,2]
[350244029,1737733850725,-500.0,0.00018695,2]
[350244030,1737733850735,-403.630306,0.00018695,2]
[350244031,1737733850746,-690.78,0.00018695,2]
[350244032,1737733850756,-403.630306,0.00018695,2]
[350244033,1737733850766,-81706.96074202,0.00018695,2]
[350244034,1737733850776,-500.0,0.00018696,2]
[350244035,1737733850786,-252.31480159,0.00018696,2]
[350244036,1737733850796,-500.0,0.00018696,2]
[350244037,1737733850806,-503.57573466,0.00018696,2]
[350244038,1737733850816,-266.26629051,0.00018696,2]
[350244039,1737733850826,-500.0,0.00018696,2]
[350244040,1737733850835,-230.99120606,0.00018696,2]
[350244041,1737733850845,-506.8894973,0.00018696,2]
[350244042,1737733850855,-500.0,0.00018696,2]
[350244043,1737733850865,-500.0,0.00018696,2]
[350244044,1737733850875,-500.0,0.00018696,2]
[350244045,1737733850885,-500.0,0.00018696,2]
[350244046,1737733850895,-500.0,0.00018696,2]
[350244047,1737733850904,-501.64243051,0.00018696,2]
[350244048,1737733850914,-301.14753056,0.00018696,2]
[350244049,1737733850924,-502.14893857,0.00018696,2]
[350244050,1737733850935,-500.0,0.00018696,2]
[350244051,1737733850945,-501.89687596,0.00018696,2]
[350244052,1737733850954,-500.0,0.00018696,2]
[350244053,1737733850964,-500.0,0.00018696,2]
[350244054,1737733850974,-500.0,0.00018696,2]
[350244055,1737733850984,-362.39799688,0.00018696,2]
[350244056,1737733850994,-500.0,0.00018696,2]
[350244057,1737733851004,-500.0,0.00018696,2]
[350244058,1737733851013,-500.0,0.00018696,2]
[350244059,1737733851023,-500.0,0.00018696,2]
[350244060,1737733851033,-501.58656571,0.00018696,2]
[350244061,1737733851043,-500.0,0.00018696,2]
[350244062,1737733851053,-500.0,0.00018696,2]
[350244063,1737733851063,-500.0,0.00018696,2]
[350244064,1737733851072,-351.211748,0.00018696,2]
[350244065,1737733851082,-500.0,0.00018696,2]
[350244066,1737733851091,-563.53888645,0.00018696,2]
[350244067,1737733851101,-500.0,0.00018696,2]
[350244068,1737733851111,-500.0,0.00018696,2]
[350244069,1737733851120,-500.0,0.00018696,2]
[350244070,1737733851131,-501.34515397,0.00018696,2]
[350244071,1737733851141,-500.0,0.00018696,2]
[350244072,1737733851151,-500.0,0.00018696,2]
[350244073,1737733851161,-500.0,0.00018696,2]
[350244074,1737733851170,-500.74424708,0.00018696,2]
[350244075,1737733851180,-500.0,0.00018696,2]
[350244076,1737733851190,-530.25,0.00018696,2]
[350244077,1737733851199,-500.0,0.00018696,2]
[350244078,1737733851208,-500.0,0.00018696,2]
[350244079,1737733851218,-500.0,0.00018696,2]
[350244080,1737733851228,-500.0,0.00018696,2]
[350244081,1737733851238,-508.84,0.00018696,2]
[350244082,1737733851247,-500.0,0.00018696,2]
[350244083,1737733851257,-500.0,0.00018696,2]
[350244084,1737733851266,-500.0,0.00018696,2]
[350244085,1737733851276,-500.0,0.00018696,2]
[350244086,1737733851286,-500.0,0.00018696,2]
[350244087,1737733851296,-151.0,0.000187,2]
[350244088,1737733851306,-151.0,0.000187,2]
[350244089,1737733851316,-151.0,0.000187,2]
[350244090,1737733851326,-4031.974426,0.000187,2]
[350244091,1737733851336,-4031.974426,0.000187,2]
[350244092,1737733851345,-216.021493,0.000187,2]
[350244093,1737733851355,-216.021493,0.000187,2]
[350244094,1737733851364,-151.0,0.000187,2]
[350244095,1737733851375,-151.0,0.000187,2]
[350244096,1737733851387,-250.0,0.000187,2]
[350244097,1737733851397,-250.0,0.000187,2]
[350244098,1737733851407,-426.8,0.000187,2]
[350244099,1737733851417,-1427.0,0.000187,2]
[350244100,1737733851427,-666.0,0.00018714,2]
[350244101,1737733851437,-405395.49331667,0.00018715,2]
[350244102,1737733851447,-151.0,0.00018715,2]
[350244103,1737733851456,-151.0,0.00018715,2]
[350244104,1737733851466,-213.35503,0.00018715,2]
[350244105,1737733851476,-213.35503,0.00018715,2]
[350244106,1737733851486,-151.0,0.00018715,2]
[350244107,1737733851496,-151.0,0.00018715,2]
[350244108,1737733851506,-151.0,0.00018715,2]
[350244109,1737733851516,-151.0,0.00018715,2]
[350244110,1737733851526,-1112.390942,0.00018715,2]
[350244111,1737733851538,-1112.390942,0.00018715,2]
[350244112,1737733851547,-269.123355,0.00018715,2]
[350244113,1737733851556,-269.123355,0.00018715,2]
[350244114,1737733851567,-151.0,0.00018715,2]
[350244115,1737733851576,-151.0,0.00018715,2]
[350244116,1737733851585,-151.0,0.00018715,2]
[350244117,1737733851595,-151.0,0.00018715,2]
[350244118,1737733851605,-224.561954,0.00018715,2]
[350244119,1737733851615,-151.0,0.00018715,2]
[350244120,1737733851626,-151.0,0.00018715,2]
[350244121,1737733851639,-151.0,0.00018715,2]
[350244122,1737733851648,-151.0,0.00018715,2]
[350244123,1737733851658,-151.0,0.00018715,2]
[350244124,1737733851669,-151.0,0.00018715,2]
[350244125,1737733851678,-151.0,0.00018715,2]
[350244126,1737733851688,-4031.974426,0.00018715,2]
[350244127,1737733851698,-4031.974426,0.00018715,2]
[350244128,1737733851708,-151.0,0.00018715,2]
[350244129,1737733851717,-151.0,0.00018715,2]
[350244130,1737733851727,-216.021493,0.00018715,2]
[350244131,1737733851736,-216.021493,0.00018715,2]
[350244132,1737733851746,-151.0,0.00018715,2]
[350244133,1737733851755,-151.0,0.00018715,2]
[350244134,1737733851765,-151.0,0.00018715,2]
[350244135,1737733851775,-213.709238,0.00018715,2]
[350244136,1737733851784,-403.630306,0.00018715,2]
[350244137,1737733851794,-362.05667704,0.00018729,2]
[350244138,1737733851803,-151.0,0.0001873,2]
[350244139,1737733851813,-231.322857,0.0001873,2]
[350244140,1737733851823,-213.35503,0.0001873,2]
[350244141,1737733851832,-213.35503,0.0001873,2]
[350244142,1737733851842,-151.0,0.0001873,2]
[350244143,1737733851852,-151.0,0.0001873,2]
[350244144,1737733851862,-151.0,0.0001873,2]
[350244145,1737733851871,-151.0,0.0001873,2]
[350244146,1737733851883,-1112.390942,0.0001873,2]
[350244147,1737733851893,-1112.390942,0.0001873,2]
[350244148,1737733851903,-269.123355,0.0001873,2]
[350244149,1737733851913,-269.123355,0.0001873,2]
[350244150,1737733851923,-151.0,0.0001873,2]
[350244151,1737733851933,-151.0,0.0001873,2]
[350244152,1737733851943,-151.0,0.0001873,2]
[350244153,1737733851952,-151.0,0.0001873,2]
[350244154,1737733851962,-151.0,0.0001873,2]
[350244155,1737733851971,-151.0,0.0001873,2]
[350244156,1737733851981,-151.0,0.0001873,2]
[350244157,1737733851990,-151.0,0.0001873,2]
[350244158,1737733852000,-277.45714314,0.00018731,2]
[350244159,1737733852009,-167.08419073,0.00018732,2]
[350244160,1737733852019,-1833.22661883,0.00018732,2]
[350244161,1737733852028,-646.28858083,0.00018751,2]
[350244162,1737733852038,-633.27857252,0.00018751,2]
[350244163,1737733852048,-2305.52754419,0.00018768,2]
[350244164,1737733852058,-500.0,0.00018773,2]
[350244165,1737733852068,-520.18560182,0.00018773,2]
[350244166,1737733852078,-500.0,0.00018773,2]
[350244167,1737733852087,-10077.31750387,0.0001878,2]
[350244168,1737733852465,-15872.9863143,0.0001878,2]
[350244169,1737733852477,-5386.5,0.0001878,2]
[350244170,1737733852489,-26172.281933,0.0001878,2]
[350244171,1737733852857,-590.231638,0.00018693,2]
[350244172,1737733852867,-403.630306,0.00018695,2]
[350244173,1737733852877,-403.630306,0.00018695,2]
[350244174,1737733852889,-403.630306,0.00018715,2]
[350244175,1737733852899,-2918.45400758,0.0001878,2]
[350244176,1737733852910,-15350.46357639,0.0001878,2]
[350244177,1737733853176,-707.80693838,0.0001878,2]
[350244178,1737733853189,-1373.78432172,0.0001878,2]
[350244179,1737733853209,-729.2,0.0001878,2]
[350244180,1737733853220,-2743.94689906,0.0001878,2]
[350244181,1737733853232,-316.70726266,0.0001878,2]
[350244182,1737733853243,-843.92004001,0.0001878,2]
[350244183,1737733853371,-54.08455607,0.0001878,2]
[350244184,1737733853384,-1482.00016804,0.0001878,2]
[350244185,1737733853395,-726.96295238,0.0001878,2]
[350244186,1737733853406,-525.61371807,0.0001878,2]
[350244187,1737733853476,-4314.52306243,0.0001878,2]
[350244188,1737733878868,207.0,0.0001678,2]
[350244191,1737734417756,351.45,0.00022005,120]
[350244192,1737734441613,160.0,0.00012012,2]
[350244193,1737734461178,191.44,0.00022005,120]
[350244198,1737734720442,157.62,0.00010137,2]
[350244200,1737734739133,-173.12,0.00014029,2]
[350244201,1737734739156,-526.86609182,0.00015,2]
[350244202,1737734851212,150.0,0.00021001,120]
[350244204,1737734952121,-23.13390818,0.00015,2]
[350244205,1737734952144,-322.28,0.00015305,2]
[350244212,1737735031820,-500.0,0.00016972,2]
[350244213,1737735031831,-207.0,0.0001703,2]
[350244214,1737735031841,-150.0,0.00017069,2]
[350244215,1737735031851,-250.0,0.00017072,2]
[350244216,1737735031862,-2852.01,0.00017106,2]
[350244217,1737735031874,-299.00555063,0.00017124,2]
[350244218,1737735031895,-713.86444937,0.00017124,2]
[350244219,1737735031906,-1136.78066951,0.00017151,2]
[350244220,1737735031917,-999.992,0.00017151,2]
[350244221,1737735031930,-414.41733049,0.00017151,2]
[350244222,1737735031940,-250.0,0.00017154,2]
[350244223,1737735031950,-468.5376,0.00017177,2]
[350244224,1737735031962,-200.0,0.00017263,2]
[350244225,1737735031972,-150.0,0.00017276,2]
[350244226,1737735031982,-446.3,0.00017277,2]
[350244227,1737735031991,-4952.96359777,0.00017277,2]
[350244228,1737735032023,-4856.19396702,0.00017277,2]
[350244229,1737735032065,-14090.84243521,0.00017277,2]
[350244230,1737735032075,-207.0,0.0001728,2]
[350244231,1737735032086,-1000.0,0.00017287,2]
[350244232,1737735032096,-173.72,0.00017318,2]
[350244233,1737735032106,-250.0,0.00017358,2]
[350244234,1737735032116,-301.5,0.00017393,2]
[350244235,1737735032125,-277.24,0.00017474,2]
[350244236,1737735032135,-245.61,0.00017506,2]
[350244237,1737735032145,-207.0,0.0001752,2]
[350244238,1737735032155,-322.28,0.00017569,2]
[350244239,1737735032165,-397.47,0.00017586,2]
[350244240,1737735032175,-207.0,0.0001777,2]
[350244241,1737735032184,-200.0,0.00017852,2]
[350244242,1737735032194,-166.66,0.00017946,2]
[350244243,1737735032204,-207.0,0.0001802,2]
[350244244,1737735032217,-500.0,0.00018068,2]
[350244245,1737735032226,-252.75868426,0.00018068,2]
[350244250,1737735032322,-747.24131574,0.00018068,2]
[350244251,1737735032332,-2000.0,0.00018082,2]
[350244253,1737735032341,-207.0,0.0001826,2]
[350244255,1737735032351,-178.660684,0.00018342,2]
[350244256,1737735032361,-157.159,0.00018438,2]
[350244257,1737735032541,-3903.0,0.00018438,2]
[350244258,1737735032552,-1176.0,0.00018438,2]
[350244259,1737735032562,-1106.0,0.00018438,2]
[350244260,1737735032572,-178.660684,0.00018451,2]
[350244261,1737735032581,-397.47,0.00018465,2]
[350244262,1737735032591,-250.0,0.00018491,2]
[350244263,1737735032601,-1335.1112,0.00018494,2]
[350244264,1737735032611,-266.075,0.00018494,2]
[350244265,1737735032621,-323.9574,0.00018494,2]
[350244266,1737735032630,-167.4919,0.00018495,2]
[350244267,1737735032640,-443.877,0.00018495,2]
[350244268,1737735032649,-2887.6371,0.00018495,2]
[350244269,1737735032658,-150.0,0.000185,2]
[350244270,1737735032669,-207.0,0.0001851,2]
[350244271,1737735032678,-317.71261593,0.00018542,2]
[350244272,1737735032688,-776.11975476,0.0001857,2]
[350244273,1737735032698,-331.3919858,0.00018573,2]
[350244274,1737735032708,-315.877,0.00018573,2]
[350244275,1737735032719,-1750.11735977,0.00018592,2]
[350244276,1737735032754,-271.97818748,0.00018592,2]
[350244277,1737735032764,-4160.9384328,0.00018592,2]
[350244278,1737735032773,-380.5802,0.00018593,2]
[350244279,1737735032783,-500.0,0.00018594,2]
[350244280,1737735032792,-15066.41715369,0.00018594,2]
[350244281,1737735032803,-40977.36774631,0.00018594,2]
[350244282,1737735032813,-7382.77214529,0.00018594,2]
[350244319,1737735037695,-277.40067284,0.00018594,2]
[350244320,1737735037766,-262.59478187,0.00018594,2]
[350244321,1737735037776,-167.33962859,0.00018594,2]
[350244322,1737735037786,-534.69776641,0.00018594,2]
[350244323,1737735037798,-6767.48683361,0.00018594,2]
[350244324,1737735037808,-248.46,0.00018595,2]